Cogmind - Beta 15 @@@ ROGUE MODE // 2025.06.07 @ 13:15:04 Player: puppuppit Result: Destroyed by X7-UWK(R) with Subdweller Machine Gun Performance ------------- Evolutions (0) 0 Regions Visited (2) 400 Robots Destroyed (50) 250 Value Destroyed (865) 865 Prototype IDs (2) 40 Alien Tech Used (0) 0 Bonus (0) 0 TOTAL SCORE: 1555 Bonus ------- None Cogmind --------- Core Integrity 0/250 Matter 111/300 Energy 100/100 System Corruption 1% Temperature Cool (0) Movement Core (100) Ox1 Location -10/Subcaves Parts ------- > --- POWER (1) -------- (None) > --- PROPULSION (2) --- (None) > --- UTILITY (2) ------ (None) > --- WEAPON (2) ------- Assault Rifle Assault Rifle > --- INVENTORY (5) ---- Structural Scanner Assault Rifle Light Assault Rifle Grenade Launcher Plasma Cutter Peak State ------------ > --- POWER ------------ Light Nuclear Core > --- PROPULSION ------- Light Treads Light Treads > --- UTILITY ---------- Small Storage Unit Improved Terrain Scanner > --- WEAPON ----------- Assault Rifle Assault Rifle > --- INVENTORY -------- Light Ion Engine Large Matter Pod Improved Terrain Scanner Assault Rifle Assault Rifle Assault Rifle Light Assault Rifle Grenade Launcher [Rating: 12] Favorites ----------- Power Ion Engine Engine Ion Engine Power Core Light Nuclear Core Propulsion Light Treads Treads Light Treads Utility Small Storage Unit Device Improved Terrain Scanner Storage Small Storage Unit Protection Weapon Shielding Weapon Assault Rifle Energy Gun Medium Laser Ballistic Gun Assault Rifle Launcher Grenade Launcher Build | -11 -10 -10 ------- Run | Yrd Mat Sub Slots Evolved . | . . . Power . | . . . Propulsion . | . . . Utility . | . . . Weapon . | . . . Parts Attached 20 | 7 11 2 Power 3 | 1 2 . Engine 2 | 1 1 . Core 1 | . 1 . Reactor . | . . . Propulsion 3 | 2 . 1 Treads 3 | 2 . 1 Leg . | . . . Wheel . | . . . Hover . | . . . Flight . | . . . Utility 4 | 2 1 1 Device 2 | 1 1 . Storage 1 | 1 . . Processor . | . . . Hackware . | . . . Protection 1 | . . 1 Artifact . | . . . Weapon 10 | 2 8 . Energy Gun 1 | 1 . . Energy Cannon . | . . . Ballistic Gun 6 | 1 5 . Ballistic Cannon . | . . . Launcher 3 | . 3 . Special Weapon . | . . . Impact Weapon . | . . . Slashing Weapon . | . . . Piercing Weapon . | . . . Special Melee Weapon . | . . . Unidentified Prototypes . | . . . Parts Lost 9 | . 3 6 Power 2 | . 1 1 Propulsion 3 | . . 3 Utility 2 | . . 2 Weapon 2 | . 2 . Highest Loss Streak 6 | . 2 6 To Critical Strikes 1 | . 1 . Average Backups 6 | . 6 6 Power . | . . . Propulsion . | . . . Utility 1 | . 2 1 Weapon 3 | . 3 3 Tool/Special . | . . . Unused Backups 5 | . 3 2 Power . | . . . Propulsion . | . . . Utility 4 | . 3 1 Weapon . | . . . Tool/Special 1 | . . 1 Average Slot Usage (%) 98 | . 99 71 Engine 9 | . 9 3 Core 4 | . 4 . Treads 27 | . 28 19 Device 13 | . 13 1 Storage 13 | . 14 10 Energy Gun 2 | . 2 . Ballistic Gun 24 | . 23 28 Launcher 1 | . 1 . Peak Build Rating 12 | 9 12 7 Average Rating 8 | 5 9 4 On Entrance 5 | . 9 7 Naked Turns . | . . . Heaviest Build 15 | 13 15 15 Greatest Support 40 | 40 40 40 Greatest Overweight (x) . | . . . Average Overweight (x) . | . . . Largest Inventory Capacity 8 | 8 8 8 Average Capacity 7 | 7 8 7 Most Carried 8 | 1 8 8 Average Carried 6 | . 6 6 Final Capacity 8 | 8 8 5 Final Carried 8 | 1 8 5 Class Distribution -------------------- 100% | Mutant Dominant Class ---------------- Mutant | -10/Materials Mutant | -10/Subcaves Resources | -11 -10 -10 ----------- Run | Yrd Mat Sub Matter Collected 1112 | 252 759 101 Remotely . | . . . Salvage Created 1231 | 140 1049 42 Parts 98 | 11 83 4 Haulers Intercepted 1 | . 1 . Recyclers Shooed 2 | 1 1 . Parts Field Recycled . | . . . Retrieved Matter . | . . . Parts Self-Destructed . | . . . Prevented . | . . . Kills | -11 -10 -10 ------- Run | Yrd Mat Sub Combat Hostiles Destroyed 22 | . 21 1 Guns 9 | . 8 1 AOE 13 | . 13 . Classes Destroyed 10 | 2 8 . Worker 10 | . 10 . Builder 3 | . 3 . Tunneler 5 | 4 1 . Hauler 1 | . 1 . Recycler 4 | 1 3 . Operator 2 | . 2 . Watcher 3 | . 3 . Swarmer 5 | . 5 . Grunt 15 | . 15 . Subdweller 2 | . 1 1 Best Kill Streak 10 | 5 10 1 Combat Bots Only 8 | . 8 1 Max Kills in Single Turn 2 | 1 2 1 Gunslinging . | . . . Exploded 2 | . 2 . Melee . | . . . Uniques/NPCs Destroyed . | . . . Combat | -11 -10 -10 -------- Run | Yrd Mat Sub Hostile Shots Fired 108 | . 63 45 Missed 31 | . 19 12 Hits 77 | . 44 33 Projectile 77 | . 44 33 Critical Strikes 2 | . 2 . Damage Taken 1320 | . 611 709 Core 258 | . 147 111 Absorbed by Shields . | . . . Redirected to Shielding 51 | . . 51 Core Remaining (%) 100 | 100 . . Volleys Fired 109 | 8 79 22 Largest 2 | 2 2 2 Hottest 80 | 70 80 40 Shots Fired 213 | 13 156 44 Gun 195 | 13 138 44 Cannon . | . . . Launcher 18 | . 18 . Special . | . . . Kinetic 175 | 8 123 44 Thermal 20 | 5 15 . Explosive 18 | . 18 . Electromagnetic . | . . . Robot Hit Streak 31 | 3 11 31 Robot Miss Streak 3 | 3 3 1 Penetration Max . | . . . Secondary Targets 2 | . 1 1 Max Gunslinging Chain 1 | . 1 1 Shots Hit Robots 139 | 7 92 40 Core Hits 69 | 6 61 2 Critical Kills . | . . . Critical Parts Destroyed 1 | . 1 . Critical Strikes 3 | 1 1 1 Burn 1 | 1 . . Destroy 2 | . 1 1 Melee Attacks . | . . . Impact . | . . . Slashing . | . . . Piercing . | . . . Sneak Attacks . | . . . Combat Hostiles . | . . . Follow-up Attacks . | . . . Damage Inflicted 2457 | 103 2253 101 Guns 1228 | 103 1024 101 Cannons . | . . . Explosions 1229 | . 1229 . Melee . | . . . Ramming . | . . . Kinetic 1086 | 51 934 101 Thermal 210 | 52 158 . Explosive 1161 | . 1161 . Electromagnetic . | . . . Impact . | . . . Slashing . | . . . Piercing . | . . . Highest Corruption 1 | . 1 1 Average Corruption 1 | . 1 1 Corruption Purged . | . . . Corruption Blocked . | . . . Effects 9 | . 9 . Matter Fused 3 | . 3 . Heat Flow Errors 1 | . 1 . Energy Discharges 1 | . 1 . Data Loss (minor) 3 | . 3 . Weapon Failures 1 | . 1 . Overload Shots . | . . . Overflow Damage 45 | . 45 . Projectiles . | . . . Explosions 45 | . 45 . Melee . | . . . Knockbacks . | . . . Impact . | . . . Kinetic . | . . . Secondary . | . . . Self-Inflicted Damage 138 | . 138 . Shots 7 | . 7 . Rammed . | . . . Targets Rammed . | . . . Kicked . | . . . Crushed . | . . . Highest Temperature 150 | 18 150 . Average Temperature 45 | 9 51 . Received Heat Transfer 246 | . 246 . Siege Activations . | . . . Martial Activations . | . . . Shielding Activations . | . . . Robots Disrupted . | . . . Combat Hostiles . | . . . Robots Corrupted . | . . . Combat Hostiles . | . . . Parts Fried . | . . . Impact Corruptions . | . . . Robots Melted . | . . . Combat Hostiles . | . . . Parts Melted 1 | 1 . . Heat Transferred 531 | 222 309 . Parts Sabotaged . | . . . Parts Stolen . | . . . Parts Stripped . | . . . Power Chain Reactions . | . . . Alert | -11 -10 -10 ------- Run | Yrd Mat Sub Maximum Alert Level 1 | . 1 . Low Security (%) 21 | 100 15 . Level 1 78 | . 84 . Level 2 . | . . . Level 3 . | . . . Level 4 . | . . . Level 5 . | . . . High Security . | . . . Max Security . | . . . Peak Influence 366 | 20 366 . Initial 3 | . 3 . Average 225 | 5 240 . Influence Increases 838 | 25 813 . Destroy 0b10 Robot/C 400 | . 400 . Destroy 0b10 Robot/NC 140 | 25 115 . Destroy Leader 98 | . 98 . Successful Hack 15 | . 15 . Select Force Hacks 30 | . 30 . Disable Machine 30 | . 30 . Destroy Structure 125 | . 125 . Influence Decreases 780 | 20 533 227 Entered New Map 139 | . 2 137 Time Decay 551 | 20 501 30 Lost Part 90 | . 30 60 Squads Dispatched 4 | . 4 . Investigation 3 | . 3 . Extermination . | . . . Reinforcement 1 | . 1 . Assault . | . . . Garrison . | . . . Intercept . | . . . Searches Triggered . | . . . Construction Impeded . | . . . Haulers Reinforced . | . . . Active Scanning Responses . | . . . Cargo Convoy Interrupts . | . . . Stealth | -11 -10 -10 --------- Run | Yrd Mat Sub Distress Signals 1 | . 1 . Communications Jammed . | . . . Distress Signals . | . . . Times Spotted 31 | . 29 2 Peak Tracking Total 5 | . 5 2 Tactical Retreats . | . . . Traps | -11 -10 -10 ------- Run | Yrd Mat Sub Traps Triggered 1 | . 1 . Indirectly . | . . . Trap Hack Attempts . | . . . Triggered . | . . . Disarmed . | . . . Reprogrammed 2 | . 2 . Reused . | . . . Traps Extracted . | . . . Installed . | . . . Triggered . | . . . Machines | -11 -10 -10 ---------- Run | Yrd Mat Sub Machines Disabled 3 | . 3 . Max in Single Turn 1 | . 1 . Machines Repaired . | . . . Machines Dismantled . | . . . Machines Sabotaged . | . . . Overloaded Fab Kills . | . . . Hacking | -11 -10 -10 --------- Run | Yrd Mat Sub Machines Accessed 7 | . 7 . Terminals 5 | . 5 . Fabricators . | . . . Repair Stations 1 | . 1 . Recycling Units 1 | . 1 . Scanalyzers . | . . . Garrison Access . | . . . Total Hacks 19 | . 19 . Successful 10 | . 10 . Failed 9 | . 9 . Catastrophic 1 | . 1 . Database Lockouts . | . . . Manual 10 | . 10 . Terminals 14 | . 14 . Fabricators . | . . . Repair Stations 3 | . 3 . Recycling Units 2 | . 2 . Scanalyzers . | . . . Garrison Access . | . . . Terminal Hacks 5 | . 5 . Robot Analysis 2 | . 2 . Prototype ID Bank 1 | . 1 . Terminal Index 1 | . 1 . Reprogram Traps 1 | . 1 . Fabricator Hacks . | . . . Repair Station Hacks 1 | . 1 . Scan Component 1 | . 1 . Recycling Unit Hacks 1 | . 1 . Report Inventory 1 | . 1 . Scanalyzer . | . . . Garrison Access Hacks . | . . . Unauthorized Hacks 3 | . 3 . Terminals 2 | . 2 . Botnet 2 | . 2 . Fabricators . | . . . Repair Stations . | . . . Recycling Units 1 | . 1 . Tunnel 1 | . 1 . Scanalyzers . | . . . Garrison Access . | . . . Data Cores Recovered 1 | . 1 . Used . | . . . Hacking Detections 6 | . 6 . Full Trace Events 2 | . 2 . Feedback Events 1 | . 1 . Corruption 1 | . 1 . Feedback Blocked . | . . . Robot Schematics Acquired . | . . . Robots Built . | . . . Authchips . | . . . Time . | . . . Total Robot Build Rating . | . . . Part Schematics Acquired . | . . . Parts Built . | . . . Authchips . | . . . Time . | . . . Total Part Build Rating . | . . . Parts Repaired . | . . . Time . | . . . Parts Recycled . | . . . Recycled Matter . | . . . Retrieved Matter . | . . . Retrieved Components . | . . . Parts Scanalyzed . | . . . Part Schematics Acquired . | . . . Parts Damaged . | . . . Bothacking | -11 -10 -10 ------------ Run | Yrd Mat Sub Used RIF Installer . | . . . Robots Hacked . | . . . Non-combat . | . . . Combat . | . . . Robot Hacks Applied . | . . . Relay Couplers Released . | . . . Fabnet Peak Effective % . | . . . Robots Rewired . | . . . Allies Hacked . | . . . Hacks Repelled . | . . . Allies | -11 -10 -10 -------- Run | Yrd Mat Sub Total Allies . | . . . Largest Group . | . . . Highest-Rated Group . | . . . Highest-Rated Ally . | . . . Total Orders . | . . . Ally Attacks . | . . . Total Damage . | . . . Kills . | . . . Allies Corrupted . | . . . Allies Melted . | . . . Intel | -11 -10 -10 ------- Run | Yrd Mat Sub Active Infowar (turns) 1437 | 15 1420 2 Terrain 776 | 15 761 . Structural 661 | . 659 2 Robot Analysis Total 2 | . 2 . Derelict Logs Recovered . | . . . Drone Launches . | . . . Drone Recoveries . | . . . Exploration | -11 -10 -10 ------------- Run | Yrd Mat Sub Turns Passed 1597 | 99 1426 72 Spaces Moved 759 | 43 714 2 Core 1 | 1 . . Treads 758 | 42 714 2 Legs . | . . . Wheels . | . . . Hover . | . . . Flight . | . . . Fastest Speed 50 | 50 160 160 Average Speed 159 | 157 160 160 Slowest Speed 160 | 160 160 160 Overloaded Moves . | . . . Propulsion Burnouts . | . . . Robots Hopped . | . . . Potential Cave-ins . | . . . Cave-ins Triggered . | . . . Exploration Rate (%) 44 | 4 85 . Regions Visited 2 Branch Regions 1 Pre-discovered Areas 1 | . 1 . Known Exits Taken . | . . . Unknown Exits Taken 2 | 1 1 . Scrap Searched . | . . . Spaces Dug . | . . . Terrain Destroyed 115 | . 115 . Melee . | . . . Projectile . | . . . AOE 115 | . 115 . Terrain Rammed . | . . . Walls Destroyed . | . . . Machines Disabled . | . . . Actions | -11 -10 -10 --------- Run | Yrd Mat Sub Total 921 | 58 837 26 Wait 1 | . 1 . Move 757 | 42 713 2 Hop . | . . . Pick Up 14 | 1 13 . Fast Attach 12 | 7 5 . Attach 2 | . 1 1 Detach . | . . . Swap 18 | . 17 1 Drop 8 | . 8 . Fire 109 | 8 79 22 Melee . | . . . Ram . | . . . Kick . | . . . Crush . | . . . Escape Stasis . | . . . Rewire . | . . . Trap . | . . . Miscellaneous . | . . . Route ------- -11/Scrapyard -10/Materials (discovered 4 exits: [*Mat x2] / [*Min] / [*Sub]) -10/Subcaves History --------- Turn | Location | Event 18 | -11/Scrapyard | Discovered new exit (range 15) 100 | -11/Scrapyard | Entered Materials 316 | -10/Materials | Build established: Mutant 386 | -10/Materials | Destroyed 8 combat bots 399 | -10/Materials | Discovered new exit (range 16) 952 | -10/Materials | Core integrity fell below 50% 1031 | -10/Materials | Discovered new exit (range 7) 1201 | -10/Materials | Discovered new exit (range 16) 1300 | -10/Materials | Derelicts attacked the area 1507 | -10/Materials | Discovered new exit (range 7) 1526 | -10/Materials | Entered Subcaves 1527 | -10/Subcaves | Ambushed by Subdwellers from Twisted Machinery 1527 | -10/Subcaves | Approached by a straggling Scientist 1583 | -10/Subcaves | Core integrity fell below 20% 1598 | -10/Subcaves | Destroyed by X7-UWK(R) with Subdweller Machine Gun Last Messages --------------- beginning to lose hope I'd never make it past all the Subs lurking out here." 01530_ E1-L9V(c): "Hey, let me tag along and I can get us both out of this nasty situation. At least I think I can... The group I got separated from was talking about a shortcut back to the UFD." 01530_ Ion Engine destroyed. 01531_ E1-L9V(c) destroyed. 01536_ 11-D76(R) suffers critical hit (Destroy). 01538_ Lgt. Treads destroyed. 01546_ 11-D76(R) destroyed. 01546_ Switching to secondary target: X7-UWK(R). 01549_ Subatomizers dissect the Lgt. Ion Engine. 01558_ Lgt. Treads destroyed. 01559_ Tech Extrapolator violently self-destructs. 01562_ Weapon Shielding destroyed. 01574_ Sml. Storage Unit destroyed. 01575_ Extracted 101 matter. 01585_ Subatomizers dissect the Sub. Monowheel. 01588_ Lgt. Treads destroyed. Map ----- +----------------------------------------------------+ | ?????????????????????????????????????????????????? | | ?????????????????????????????????????????????????? | | ?????????????????????????????????????????????????? | | ?????????????????????????????????????????????????? | | ?????????????????????????????????????????????????? | | ?????????????????????????????????????????????????? | | ?????????????????????????????????????????????????? | | ?????????????????????????????????????????????????? | | ?????????????????????????????????????????????????? | | ?????????????????????????????????????????????????? | | ?????????????????????????????????????????????????? | | ?????????????????????????????????????????????????? | | ?????????????????????????????????????????????????? | | ?????????????????????????????????????????????????? | | ?????????????????????????????????????????????????? | | ?????????????????????????????????????????????????? | | ?????????????????????????????????????????????????? | | ?????????????????????????????????????????????????? | | ?????????????????????????????????????????????????? | | ?????????????????????????????????????????????????? | | ?????????????????????????????????????????????????? | | ?????????????????????????####????????????????????? | | ???????????????????????######????????????????????? | | ??????????????????????#### ##????????????????????? | | ?????????????????????####[ ##????????????????????? | | ?????????????????????###%@=##????????????????????? | | ????????????????????###!*![##????????????????????? | | ???????????????????###" R%###????????????????????? | | ??????????????????###" ""&###????????????????????? | | ??????????????????## ##*###?????????????????????? | | ?????????????????? ## ######?????????????????????? | | ?????????????????? #####??????????????????????? | | ??????????????????? ?????????????????????????????? | | ??????????????????&??????????????????????????????? | | ?????????????????